fUST/lending_fUST_20260114
["ID","MTS","AMOUNT","RATE_DAILY","PERIOD"]
[401797726,1768378245714,-559.25711422,0.00014795,2]
[401797728,1768378245724,-1500.0,0.00014795,2]
[401797730,1768378245734,-1500.0,0.00014795,2]
[401797732,1768378245744,-1500.0,0.00014795,2]
[401797734,1768378245754,-582.85856265,0.00014795,2]
[401797736,1768378245763,-979.00156205,0.00014795,2]
[401797738,1768378245773,-1500.0,0.00014795,2]
[401797741,1768378245782,-427.69304459,0.00014795,2]
[401797743,1768378245791,-1500.0,0.00014795,2]
[401797745,1768378245802,-1051.15225971,0.00014795,2]
[401797747,1768378245812,-1500.0,0.00014795,2]
[401797749,1768378245821,-447.8417188,0.00014795,2]
[401797751,1768378245831,-1500.0,0.00014795,2]
[401797753,1768378245841,-1500.0,0.00014795,2]
[401797755,1768378245851,-452.68473609,0.00014795,2]
[401797757,1768378245860,-1500.0,0.00014795,2]
[401797759,1768378245870,-791.25337467,0.00014795,2]
[401797761,1768378245880,-1500.0,0.00014795,2]
[401797763,1768378245890,-1500.0,0.00014795,2]
[401797765,1768378245900,-728.0,0.00014887,2]
[401797767,1768378245911,-403.91919138,0.000149,2]
[401797769,1768378245920,-403.91919137,0.000149,2]
[401797771,1768378245930,-403.91919137,0.000149,2]
[401797773,1768378245939,-200.0,0.00014915,2]
[401797775,1768378245949,-100925.942863,0.00014916,7]
[401797777,1768378245959,-2000.0,0.00014916,2]
[401797779,1768378245969,-2000.0,0.00014916,2]
[401797781,1768378245978,-2000.0,0.00014916,2]
[401797783,1768378245988,-2000.0,0.00014916,2]
[401797785,1768378246003,-2000.0,0.00014916,2]
[401797787,1768378246012,-378.64680697,0.00014916,2]
[401797789,1768378246022,-1005.48440654,0.00014916,2]
[401797791,1768378246036,-2000.0,0.00014916,2]
[401797793,1768378246046,-2000.0,0.00014916,2]
[401797795,1768378246055,-1577.72950273,0.00014916,2]
[401797797,1768378246066,-531.81939639,0.00014916,2]
[401797799,1768378246076,-1288.90612665,0.00014916,2]
[401797801,1768378246085,-2000.0,0.00014916,2]
[401797803,1768378246095,-2000.0,0.00014916,2]
[401797805,1768378246105,-2000.0,0.00014916,2]
[401797807,1768378246114,-2000.0,0.00014916,2]
[401797809,1768378246124,-870.0,0.00014917,2]
[401797811,1768378246133,-431.0,0.00014917,2]
[401797813,1768378246143,-10000.0,0.00014931,2]
[401797815,1768378246152,-500.0,0.00014998,2]
[401797817,1768378246161,-35775.62597585,0.00015,2]
[401797819,1768378246172,-2000.0,0.00015014,7]
[401797821,1768378246181,-1000.0,0.00015031,2]
[401797823,1768378246190,-244.0,0.00015031,2]
[401797825,1768378246199,-870.0,0.00015054,2]
[401797827,1768378246208,-431.0,0.00015054,2]
[401797829,1768378246219,-160.35823449,0.00015065,2]
[401797831,1768378246228,-800.0,0.00015068,2]
[401797833,1768378246238,-210.33957802,0.00015149,2]
[401797835,1768378246247,-728.0,0.00015181,2]
[401797837,1768378246257,-870.0,0.00015191,2]
[401797839,1768378246266,-431.0,0.00015191,2]
[401797841,1768378246275,-2715.0,0.00015222,2]
[401797843,1768378246284,-2715.0,0.00015222,2]
[401797845,1768378246294,-2715.0,0.00015226,2]
[401797847,1768378246304,-2715.0,0.00015237,2]
[401797849,1768378246313,-500.0,0.00015272,2]
[401797851,1768378246323,-2674.60743027,0.00015283,2]
[401797853,1768378246332,-553.64373807,0.00015283,2]
[401797855,1768378246342,-1665.51,0.000153,2]
[401797857,1768378246351,-2715.0,0.00015316,2]
[401797859,1768378246361,-1200.0,0.00015316,2]
[401797861,1768378246371,-870.0,0.00015328,2]
[401797863,1768378246381,-431.0,0.00015328,2]
[401797865,1768378246390,-200.0,0.00015341,2]
[401797867,1768378246400,-992.62086011,0.00015342,2]
[401797869,1768378246409,-559.4878042,0.00015342,2]
[401797870,1768378246422,-2000.0,0.00015342,2]
[401797872,1768378246431,-2000.0,0.00015342,2]
[401797873,1768378246440,-1594.03075988,0.00015342,2]
[401797875,1768378246449,-2000.0,0.00015342,2]
[401797876,1768378246458,-1373.84265648,0.00015342,2]
[401797878,1768378246467,-248.49065547,0.00015342,2]
[401797880,1768378246476,-2000.0,0.00015342,2]
[401797881,1768378246485,-2000.0,0.00015342,2]
[401797883,1768378246494,-2000.0,0.00015342,2]
[401797885,1768378246503,-235.30085754,0.00015342,2]
[401797887,1768378246514,-2000.0,0.00015342,2]
[401797888,1768378246524,-2000.0,0.00015342,2]
[401797890,1768378246534,-2715.0,0.00015387,2]
[401797892,1768378246544,-224.81095791,0.00015463,2]
[401797894,1768378246553,-2500.0,0.00015464,2]
[401797895,1768378246563,-2500.0,0.00015464,2]
[401797897,1768378246573,-2500.0,0.00015464,2]
[401797899,1768378246582,-2500.0,0.00015464,2]
[401797900,1768378246591,-2500.0,0.00015464,2]
[401797902,1768378246601,-2500.0,0.00015464,2]
[401797904,1768378246610,-2500.0,0.00015464,2]
[401797906,1768378246620,-2500.0,0.00015464,2]
[401797907,1768378246629,-2500.0,0.00015464,2]
[401797909,1768378246639,-2500.0,0.00015464,2]
[401797911,1768378246648,-2500.0,0.00015464,2]
[401797913,1768378246657,-870.0,0.00015465,2]
[401797914,1768378246665,-431.0,0.00015465,2]
[401797917,1768378246675,-457.46808349,0.00015486,2]
[401797919,1768378246684,-286.5314506,0.00015546,2]
[401797921,1768378246694,-210.35,0.00015554,2]
[401797923,1768378246713,-2715.0,0.00015562,2]
[401797925,1768378246723,-2715.0,0.00015574,2]
[401797927,1768378246732,-870.0,0.00015602,2]
[401797928,1768378246742,-431.0,0.00015602,2]
[401797930,1768378246751,-2715.0,0.0001561,2]
[401797932,1768378246761,-2715.0,0.00015617,2]
[401797933,1768378246771,-2715.0,0.0001566,2]
[401797935,1768378246782,-728.0,0.0001566,2]
[401797937,1768378246791,-728.0,0.0001566,2]
[401797939,1768378246802,-773.84315583,0.00015678,2]
[401797941,1768378246811,-2715.0,0.00015679,2]
[401797942,1768378246821,-2715.0,0.0001568,2]
[401797944,1768378246831,-728.0,0.00015712,2]
[401797946,1768378246841,-870.0,0.00015739,2]
[401797948,1768378246851,-431.0,0.00015739,2]
[401797949,1768378246860,-1665.51,0.000158,2]
[401797951,1768378246869,-2773.56790519,0.00015831,2]
[401797953,1768378246879,-574.12855637,0.00015831,2]
[401797955,1768378246889,-1500.0,0.00015864,2]
[401797957,1768378246898,-870.0,0.00015876,2]
[401797958,1768378246907,-431.0,0.00015876,2]
[401797960,1768378246916,-2715.0,0.00015887,2]
[401797961,1768378246926,-2500.0,0.0001589,2]
[401797963,1768378246939,-2500.0,0.0001589,2]
[401797965,1768378246949,-1211.66599686,0.0001589,2]
[401797966,1768378246958,-2500.0,0.0001589,2]
[401797968,1768378246968,-2500.0,0.0001589,2]
[401797970,1768378246977,-2500.0,0.0001589,2]
[401797972,1768378246987,-380.12579905,0.0001589,2]
[401797974,1768378246999,-2500.0,0.0001589,2]
[401797976,1768378247009,-402.28551192,0.00015894,2]
[401797978,1768378247019,-2715.0,0.00015898,2]
[401797979,1768378247031,-3000.0,0.00016,2]
[401797981,1768378247041,-3000.0,0.0001601,2]
[401797983,1768378247051,-371.52284537,0.00016012,2]
[401797985,1768378247061,-3000.0,0.00016012,2]
[401797987,1768378247074,-3000.0,0.00016012,2]
[401797989,1768378247085,-3000.0,0.00016012,2]
[401797991,1768378247095,-3000.0,0.00016012,2]
[401797993,1768378247106,-1671.14126243,0.00016012,2]
[401797994,1768378247116,-3000.0,0.00016012,2]
[401797996,1768378247127,-3000.0,0.00016012,2]
[401797997,1768378247136,-3000.0,0.00016012,2]
[401797999,1768378247147,-1916.13825137,0.00016012,2]
[401798001,1768378247156,-3000.0,0.00016012,2]
[401798003,1768378247166,-870.0,0.00016013,2]
[401798005,1768378247176,-431.0,0.00016013,2]
[401798007,1768378247185,-3000.0,0.0001602,2]
[401798008,1768378247195,-417.0,0.00016029,2]
[401798010,1768378247204,-417.0,0.00016029,2]
[401798012,1768378247213,-715.0,0.00016029,2]
[401798014,1768378247222,-178.0,0.00016029,2]
[401798016,1768378247232,-3000.0,0.0001603,2]
[401798017,1768378247241,-6104.194006,0.0001603,7]
[401798019,1768378247250,-1033.40660497,0.00016032,2]
[401798021,1768378247259,-3000.0,0.0001604,2]
[401798023,1768378247268,-1613.0,0.00016047,2]
[401798024,1768378247280,-1613.0,0.00016047,2]
[401798026,1768378247289,-3000.0,0.0001605,2]
[401798028,1768378247299,-3000.0,0.0001606,2]
[401798029,1768378247308,-3000.0,0.0001607,2]
[401798031,1768378247318,-3000.0,0.0001608,2]
[401798033,1768378247327,-3000.0,0.0001609,2]
[401798035,1768378247336,-3000.0,0.000161,2]
[401798036,1768378247345,-3000.0,0.0001611,2]
[401798038,1768378247355,-3000.0,0.0001612,2]
[401798040,1768378247364,-3000.0,0.0001613,2]
[401798041,1768378247374,-3000.0,0.0001614,2]
[401798043,1768378247384,-889.0018012,0.0001615,2]
[401798045,1768378247393,-454.17015784,0.0001615,2]
[401798046,1768378247402,-3000.0,0.0001615,2]
[401798048,1768378247412,-3000.0,0.0001616,2]
[401798050,1768378247421,-1600.0,0.00016164,2]
[401798052,1768378247432,-3000.0,0.0001617,2]
[401798054,1768378247441,-3000.0,0.0001618,2]
[401798055,1768378247450,-3000.0,0.0001619,2]
[401798057,1768378247459,-3000.0,0.000162,2]
[401798059,1768378247470,-2715.0,0.00016202,2]
[401798060,1768378247479,-3000.0,0.0001621,2]
[401798062,1768378247489,-3000.0,0.0001622,2]
[401798064,1768378247499,-2715.0,0.00016224,2]
[401798066,1768378247509,-3000.0,0.0001623,2]
[401798067,1768378247518,-2715.0,0.00016233,2]
[401798069,1768378247528,-3000.0,0.0001624,2]
[401798071,1768378247538,-3000.0,0.0001625,2]
[401798073,1768378247548,-1041.66666667,0.00016252,2]
[401798074,1768378247557,-160.0,0.00016253,2]
[401798076,1768378247566,-3000.0,0.0001626,2]
[401798078,1768378247576,-728.0,0.00016265,2]
[401798080,1768378247585,-3000.0,0.0001627,2]
[401798082,1768378247595,-3000.0,0.0001628,2]
[401798083,1768378247605,-3000.0,0.0001629,2]
[401798085,1768378247614,-500.0,0.00016294,2]
[401798087,1768378247624,-500.0,0.00016294,2]
[401798089,1768378247633,-500.0,0.00016294,2]
[401798091,1768378247642,-500.0,0.00016294,2]
[401798092,1768378247653,-500.0,0.00016294,2]
[401798094,1768378247662,-500.0,0.00016294,2]
[401798096,1768378247672,-800.23,0.00016294,2]
[401798098,1768378247682,-500.0,0.00016294,2]
[401798110,1768378247810,-500.0,0.00016294,2]
[401798112,1768378247819,-500.0,0.00016294,2]
[401798113,1768378247829,-589.28,0.00016294,2]
[401798115,1768378247838,-500.0,0.00016294,2]
[401798117,1768378247848,-3000.0,0.000163,2]
[401798119,1768378247857,-1665.51,0.000163,2]
[401798120,1768378247866,-3000.0,0.0001631,2]
[401798122,1768378247876,-3000.0,0.0001632,2]
[401798124,1768378247885,-2000.0,0.00016329,7]
[401798126,1768378247894,-3000.0,0.0001633,2]
[401798128,1768378247904,-3000.0,0.0001634,2]
[401798129,1768378247913,-3000.0,0.0001635,2]
[401798131,1768378247923,-168.0,0.00016351,2]
[401798133,1768378247932,-2946.62990631,0.00016351,2]
[401798135,1768378247941,-2715.0,0.00016351,2]
[401798136,1768378247950,-3000.0,0.0001636,2]
[401798138,1768378247959,-3000.0,0.0001637,2]
[401798140,1768378247969,-18780.42235644,0.00016373,2]
[401798142,1768378247978,-2876.18991768,0.00016379,2]
[401798144,1768378247988,-595.37131296,0.00016379,2]
[401798146,1768378247998,-3000.0,0.0001638,2]
[401798147,1768378248009,-3000.0,0.0001639,2]
[401798149,1768378248018,-3000.0,0.000164,2]
[401798151,1768378248028,-2715.0,0.000164,2]
[401798152,1768378248038,-3000.0,0.0001641,2]
[401798154,1768378248051,-1800.0,0.00016412,2]
[401798156,1768378248060,-3000.0,0.0001642,2]
[401798158,1768378248071,-3187.243627,0.0001643,2]
[401798160,1768378248081,-500.0,0.00016438,2]
[401798162,1768378248090,-500.0,0.00016438,2]
[401798163,1768378248098,-500.0,0.00016438,2]
[401798165,1768378248108,-500.0,0.00016438,2]
[401798167,1768378248117,-500.0,0.00016438,2]
[401798169,1768378248127,-367.29391014,0.00016438,2]
[401798171,1768378248137,-500.0,0.00016438,2]
[401798173,1768378248146,-595.30780858,0.00016438,2]
[401798174,1768378248156,-200.0,0.00016438,2]
[401798176,1768378248165,-164.26686219,0.00016438,2]
[401798178,1768378248174,-2044.67516775,0.00016438,2]
[401798180,1768378248184,-3000.0,0.00016438,2]
[401798182,1768378248194,-2319.68437302,0.00016438,2]
[401798183,1768378248203,-3000.0,0.00016438,2]
[401798185,1768378248212,-3000.0,0.00016438,2]
[401798187,1768378248222,-3000.0,0.00016438,2]
[401798189,1768378248231,-260.29560408,0.00016438,2]
[401798191,1768378248240,-200.0,0.00016473,2]
[401798192,1768378248250,-2715.0,0.00016493,2]
[401798194,1768378248260,-2715.0,0.00016527,2]
[401798196,1768378248269,-1000.0,0.00016534,2]
[401798198,1768378248279,-492.0,0.00016534,2]
[401798200,1768378248289,-3500.0,0.0001656,2]
[401798201,1768378248299,-3500.0,0.0001656,2]
[401798203,1768378248308,-3500.0,0.0001656,2]
[401798205,1768378248318,-3500.0,0.0001656,2]
[401798207,1768378248328,-3500.0,0.0001656,2]
[401798209,1768378248338,-3500.0,0.0001656,2]
[401798211,1768378248347,-3500.0,0.0001656,2]
[401798212,1768378248357,-3500.0,0.0001656,2]
[401798214,1768378248366,-210.35,0.00016567,2]
[401798216,1768378248376,-1741.14710061,0.00016596,2]
[401798218,1768378248385,-728.0,0.00016672,2]
[401798220,1768378248395,-162.0,0.0001668,2]
[401798221,1768378248404,-6728.396191,0.00016682,7]
[401798223,1768378248413,-10092.594286,0.00016686,7]
[401798224,1768378248422,-2715.0,0.00016687,2]
[401798226,1768378248431,-2715.0,0.00016766,2]
[401798228,1768378248442,-1665.51,0.000168,2]
[401798229,1768378248451,-2982.60894464,0.00016927,2]
[401798231,1768378248461,-617.40005154,0.00016927,2]
[401798233,1768378248471,-728.0,0.0001694,2]
[401798235,1768378248480,-406.946267,0.00016941,7]
[401798236,1768378248489,-163.33303318,0.00016946,2]
[401798238,1768378248500,-2100.0,0.0001696,2]
[401798240,1768378248510,-3087.94374426,0.00016986,2]
[401798242,1768378248520,-3500.0,0.00016986,2]
[401798243,1768378248530,-3500.0,0.00016986,2]
[401798245,1768378248539,-3500.0,0.00016986,2]
[401798247,1768378248549,-728.0,0.00017,2]
[401798249,1768378248558,-728.0,0.00017,2]
[401798250,1768378248568,-491.12165105,0.00017023,14]
[401798252,1768378248577,-1000.0,0.000171,2]
[401798254,1768378248586,-1000.0,0.000171,2]
[401798256,1768378248595,-1000.0,0.000171,2]
[401798258,1768378248604,-4000.0,0.00017108,2]
[401798259,1768378248614,-331.1504639,0.00017108,2]
[401798261,1768378248624,-4000.0,0.00017108,2]
[401798263,1768378248633,-4000.0,0.00017108,2]
[401798265,1768378248643,-4000.0,0.00017108,2]
[401798267,1768378248652,-4000.0,0.00017108,2]
[401798268,1768378248662,-1892.75982988,0.00017108,2]
[401798270,1768378248672,-4000.0,0.00017108,2]
[401798272,1768378248681,-14150.53090947,0.00017128,2]
[401798274,1768378248693,-728.0,0.0001719,2]
[401798276,1768378248703,-2400.0,0.0001726,2]
[401798278,1768378248713,-1665.51,0.000173,2]
[401798279,1768378248722,-540.90054673,0.00017412,2]
[401798281,1768378248741,-5000.0,0.00017412,2]
[401798283,1768378248751,-3092.96547559,0.00017475,2]
[401798285,1768378248760,-640.24385345,0.00017475,2]
[401798287,1768378248769,-2400.0,0.00017508,2]
[401798288,1768378248780,-3095.37262331,0.00017513,2]
[401798290,1768378248789,-400.0,0.00017534,2]
[401798292,1768378248798,-4000.0,0.00017534,2]
[401798294,1768378248808,-4000.0,0.00017534,2]
[401798296,1768378248818,-4000.0,0.00017534,2]
[401798297,1768378248827,-1829.87233394,0.00017638,2]
[401798299,1768378248836,-728.0,0.0001764,2]
[401798301,1768378248846,-2000.0,0.00017644,7]
[401798303,1768378248855,-2258.0,0.00017652,2]
[401798305,1768378248864,-1962.0,0.00017652,2]
[401798307,1768378248874,-1199.34641428,0.00017656,2]
[401798308,1768378248883,-4500.0,0.00017656,2]
[401798310,1768378248893,-4500.0,0.00017656,2]
[401798312,1768378248903,-4500.0,0.00017656,2]
[401798314,1768378248913,-4500.0,0.00017656,2]
[401798316,1768378248923,-4500.0,0.00017656,2]
[401798318,1768378248932,-491.12165105,0.00017694,16]
[401798319,1768378248941,-1665.51,0.000178,2]
[401798321,1768378248951,-400.30202268,0.00017842,2]
[401798323,1768378248961,-1060.1,0.00017896,2]
[401798325,1768378248970,-3707.1440945,0.00017937,2]
[401798326,1768378248979,-728.0,0.0001796,2]
[401798328,1768378248989,-3207.40519818,0.00018023,2]
[401798330,1768378249000,-663.93287602,0.00018023,2]
[401798332,1768378249009,-1154.19438997,0.00018032,2]
[401798333,1768378249018,-2700.0,0.00018056,2]
[401798335,1768378249028,-728.0,0.00018075,2]
[401798337,1768378249038,-4500.0,0.00018082,2]
[401798339,1768378249047,-4500.0,0.00018082,2]
[401798340,1768378249057,-4500.0,0.00018082,2]
[401798342,1768378249066,-239186.2342698,0.00018082,3]
[401798344,1768378249077,-1000.0,0.00018187,2]
[401798346,1768378249086,-791.0,0.00018187,2]
[401798347,1768378249095,-917.48910491,0.00018204,2]
[401798349,1768378249104,-5000.0,0.00018204,2]
[401798351,1768378249113,-5000.0,0.00018204,2]
[401798353,1768378249122,-5000.0,0.00018204,2]
[401798355,1768378249131,-5000.0,0.00018204,2]
[401798356,1768378249140,-728.0,0.0001822,2]
[401798358,1768378249149,-728.0,0.0001828,2]
[401798360,1768378249158,-1665.51,0.000183,2]
[401798362,1768378249167,-3200.0,0.00018356,2]
[401798364,1768378249177,-491.12165105,0.00018366,17]
[401798365,1768378249186,-4836.51972393,0.00018431,2]
[401798367,1768378249195,-160.0,0.0001847,2]
[401798369,1768378249204,-728.0,0.0001854,2]
[401798371,1768378249212,-3326.07919052,0.00018571,2]
[401798373,1768378249222,-688.49839244,0.00018571,2]
[401798374,1768378249231,-3000.0,0.00018604,2]
[401798376,1768378249240,-600.0,0.0001863,2]
[401798378,1768378249250,-5000.0,0.0001863,2]
[401798380,1768378249260,-5000.0,0.0001863,2]
[401798382,1768378249270,-5000.0,0.0001863,2]
[401798384,1768378249279,-728.0,0.00018715,2]
[401798386,1768378249289,-2015.44184525,0.00018752,2]
[401798388,1768378249299,-5500.0,0.00018752,2]
[401798389,1768378249309,-5500.0,0.00018752,2]
[401798391,1768378249319,-5500.0,0.00018752,2]
[401798393,1768378249328,-728.0,0.0001886,2]
[401798394,1768378249338,-728.0,0.0001886,2]
[401798396,1768378249347,-5000.0,0.00018863,2]
[401798398,1768378249357,-1665.51,0.000189,2]
[401798399,1768378249366,-303.10001603,0.000189,2]
[401798401,1768378249376,-303.10001603,0.000189,2]
[401798403,1768378249386,-2000.0,0.00018959,7]
[401798404,1768378249395,-500.0,0.00018991,2]
[401798406,1768378249404,-500.0,0.00018991,2]
[401798408,1768378249414,-622.37610142,0.00018991,2]
[401798410,1768378249423,-453.49252577,0.00018991,2]
[401798412,1768378249433,-500.0,0.00018991,2]
[401798414,1768378249442,-500.0,0.00018991,2]
[401798416,1768378249453,-800.23,0.00018991,2]
[401798418,1768378249463,-500.0,0.00018991,2]
[401798420,1768378249473,-633.96263391,0.00018991,2]
[401798422,1768378249484,-500.0,0.00018991,2]
[401798424,1768378249494,-589.28,0.00018991,2]
[401798426,1768378249504,-500.0,0.00018991,2]
[401798428,1768378249513,-417.0,0.00019029,2]
[401798430,1768378249523,-417.0,0.00019029,2]
[401798433,1768378249534,-715.0,0.00019029,2]
[401798434,1768378249544,-178.0,0.00019029,2]
[401798436,1768378249553,-491.12165105,0.00019038,19]
[401798438,1768378249563,-303.10001603,0.00019089,2]
[401798440,1768378249572,-303.10001603,0.00019089,2]
[401798441,1768378249581,-3449.14412057,0.00019119,2]
[401798442,1768378249590,-3300.0,0.00019152,2]
[401798443,1768378249599,-507.1352,0.00019178,2]
[401798444,1768378249608,-200.0,0.00019178,2]
[401798445,1768378249616,-507.1352,0.00019178,2]
[401798446,1768378249625,-507.1352,0.00019178,2]
[401798447,1768378249634,-507.1352,0.00019178,2]
[401798448,1768378249643,-478.96,0.00019178,2]
[401798449,1768378249652,-633.503416,0.00019178,2]
[401798450,1768378249661,-633.503416,0.00019178,2]
[401798451,1768378249670,-633.503416,0.00019178,2]
[401798452,1768378249679,-633.503416,0.00019178,2]
[401798453,1768378249688,-5500.0,0.00019178,2]
[401798454,1768378249696,-5500.0,0.00019178,2]
[401798456,1768378249705,-5500.0,0.00019178,2]
[401798459,1768378249714,-728.0,0.0001918,2]
[401798461,1768378249723,-40340.44,0.000192,2]
[401798462,1768378249732,-4046.54,0.000192,2]
[401798463,1768378249740,-253.24,0.000192,2]
[401798464,1768378249749,-267.88,0.000192,2]
[401798465,1768378249835,-167.76,0.000192,2]
[401798466,1768378249855,-304.04513062,0.00019278,2]
[401798467,1768378249865,-303.10001603,0.00019278,2]
[401798468,1768378249874,-6000.0,0.000193,2]
[401798469,1768378249883,-1540.44472477,0.000193,2]
[401798470,1768378249893,-6000.0,0.000193,2]
[401798471,1768378249902,-6964.58840246,0.00019349,2]
[401798472,1768378249911,-1060.1,0.00019355,2]
[401798473,1768378249919,-1665.51,0.000194,2]
[401798474,1768378249928,-3162.0,0.00019417,2]
[401798475,1768378249937,-307.60380185,0.00019452,2]
[401798476,1768378249946,-303.10001603,0.00019467,2]
[401798477,1768378249955,-14150.53090947,0.00019561,2]
[401798478,1768378249964,-18780.42235644,0.00019577,2]
[401798479,1768378249973,-303.10001603,0.00019656,2]
[401798480,1768378249983,-3576.76245303,0.00019667,2]
[401798481,1768378249996,-756.20051056,0.000197,2]
[401798482,1768378250005,-491.12165105,0.0001971,20]
[401798483,1768378250014,-800.0,0.00019726,2]
[401798485,1768378250023,-250.0,0.00019726,2]
[401798486,1768378250033,-6000.0,0.00019726,2]
[401798488,1768378250043,-6000.0,0.00019726,2]
[401798489,1768378250052,-250.0,0.00019726,2]
[401798490,1768378250062,-6000.0,0.00019726,2]
[401798492,1768378250072,-1258.927975,0.0001976,5]
[401798494,1768378250082,-1000.0,0.0001978,5]
[401798496,1768378250091,-4117.21275137,0.0001979,2]
[401798498,1768378250100,-1000.0,0.000198,5]
[401798500,1768378250110,-1000.0,0.0001982,5]
[401798502,1768378250119,-1000.0,0.0001984,5]
[401798504,1768378250129,-454.65002405,0.00019845,4]
[401798506,1768378250139,-6500.0,0.00019848,2]
[401798509,1768378250149,-6500.0,0.00019848,2]
[401798511,1768378250158,-1000.0,0.0001986,5]
[401798512,1768378250168,-1000.0,0.0001988,5]
[401798515,1768378250177,-1665.51,0.000199,2]
[401798517,1768378250188,-1000.0,0.000199,5]
[401798519,1768378250197,-1000.0,0.0001992,5]
[401798521,1768378250206,-1000.0,0.0001994,5]
[401798522,1768378250216,-1000.0,0.0001996,5]
[401798525,1768378250225,-1000.0,0.0001998,5]
[401798526,1768378250235,-9661.0,0.0002,2]
[401798529,1768378250245,-1000.0,0.0002,5]
[401798531,1768378250254,-151.55000802,0.0002,2]
[401798533,1768378250264,-507.1352,0.0002,4]
[401798535,1768378250274,-507.1352,0.0002,4]
[401798536,1768378250284,-507.1352,0.0002,4]
[401798539,1768378250294,-300.0,0.0002,2]
[401798541,1768378250303,-507.1352,0.0002,4]
[401798543,1768378250313,-1000.0,0.00020006,2]
[401798544,1768378250322,-1000.0,0.00020006,2]
[401798546,1768378250331,-1274.98217496,0.00020032,2]
[401798548,1768378250341,-454.65002405,0.00020034,4]
[401798550,1768378250351,-3709.10266379,0.00020215,2]
[401798552,1768378250360,-454.65002405,0.00020223,4]
[401798554,1768378250370,-9479.5786589,0.00020266,2]
[401798556,1768378250379,-200.91058964,0.00020274,2]
[401798558,1768378250389,-5402.72600724,0.00020274,2]
[401798560,1768378250399,-4946.58201638,0.00020274,2]
[401798562,1768378250409,-2000.0,0.00020274,7]
[401798564,1768378250418,-350.0,0.00020274,2]
[401798566,1768378250428,-6500.0,0.00020274,2]
[401798568,1768378250437,-180.16394919,0.00020316,2]
[401798570,1768378250446,-491.12165105,0.00020382,21]
[401798572,1768378250455,-7000.0,0.00020396,2]
[401798574,1768378250465,-2573.24025849,0.00020396,2]
[401798576,1768378250474,-1665.51,0.000204,2]
[401798578,1768378250483,-507.1352,0.00020411,5]
[401798580,1768378250493,-507.1352,0.00020411,5]
[401798582,1768378250502,-507.1352,0.00020411,5]
[401798584,1768378250511,-507.1352,0.00020411,5]
[401798586,1768378250521,-454.65002405,0.00020412,4]
[401798588,1768378250531,-1798.538388,0.00020548,2]
[401798590,1768378250540,-454.65002403,0.00020601,4]
[401798592,1768378250550,-3846.33946235,0.00020763,2]
[401798595,1768378250560,-1060.1,0.00020813,2]
[401798597,1768378250569,-1000.0,0.00020822,2]
[401798598,1768378250579,-450.0,0.00020822,2]
[401798601,1768378250588,-7000.0,0.00020822,2]
[401798603,1768378250597,-151.0,0.000209,4]
[401798605,1768378250606,-1665.51,0.000209,2]
[401798607,1768378250616,-151.0,0.000209,4]
[401798609,1768378250625,-2683.87260271,0.00020944,2]
[401798611,1768378250634,-3000.0,0.00021,2]
[401798613,1768378250643,-524.86,0.00021,7]
[401798615,1768378250652,-3000.0,0.0002101,2]
[401798617,1768378250660,-3000.0,0.0002102,2]
[401798619,1768378250669,-3000.0,0.0002103,2]
[401798621,1768378250679,-3000.0,0.0002104,2]
[401798623,1768378250687,-3000.0,0.0002105,2]
[401798625,1768378250696,-491.12165105,0.00021054,23]
[401798627,1768378250705,-3000.0,0.0002106,2]
[401798628,1768378250714,-3000.0,0.0002107,2]
[401798630,1768378250723,-3000.0,0.0002108,2]